fUST/lending_fUST_20250509
["ID","MTS","AMOUNT","RATE_DAILY","PERIOD"]
[360360196,1746767443228,-409.45155155,0.00010958,2]
[360360198,1746767443237,-403.19481454,0.00010958,2]
[360360200,1746767443247,-401.9491741,0.00010958,2]
[360360202,1746767443257,-406.5486245,0.00010958,2]
[360360204,1746767443266,-401.67631309,0.00010958,2]
[360360206,1746767443275,-405.30965642,0.00010958,2]
[360360209,1746767443285,-411.32669264,0.00010958,2]
[360360210,1746767443294,-401.61714016,0.00010958,2]
[360360212,1746767443304,-406.38386996,0.00010958,2]
[360360214,1746767443314,-409.11598885,0.00010958,2]
[360360216,1746767443326,-400.0,0.00010958,2]
[360360219,1746767443342,-413.28092568,0.00010958,2]
[360360221,1746767443352,-410.18283119,0.00010958,2]
[360360223,1746767443362,-539.155874,0.00010958,2]
[360360225,1746767443373,-539.155874,0.00010958,2]
[360360227,1746767443383,-539.155874,0.00010958,2]
[360360229,1746767443392,-539.155874,0.00010958,2]
[360360231,1746767443404,-539.155874,0.00010958,2]
[360360248,1746767443553,-539.155874,0.00010958,2]
[360360250,1746767443564,-539.155874,0.00010958,2]
[360360252,1746767443574,-539.155874,0.00010958,2]
[360360254,1746767443583,-539.155874,0.00010958,2]
[360360256,1746767443593,-539.155874,0.00010958,2]
[360360258,1746767443603,-514.90207928,0.00010958,2]
[360360260,1746767443612,-400.0,0.00010958,2]
[360360262,1746767443622,-404.18401517,0.00010958,2]
[360360264,1746767443632,-404.95916937,0.00010958,2]
[360360266,1746767443642,-351.80853889,0.00010958,2]
[360360268,1746767443653,-405.69248297,0.00010958,2]
[360360270,1746767443662,-353.85521893,0.00010958,2]
[360360272,1746767443672,-403.01062308,0.00010958,2]
[360360274,1746767443681,-410.43112542,0.00010958,2]
[360360276,1746767443690,-411.96860543,0.00010958,2]
[360360278,1746767443700,-459.03810025,0.00010958,2]
[360360280,1746767443710,-400.0,0.00010958,2]
[360360282,1746767443720,-500.0,0.00010958,2]
[360360284,1746767443729,-242.59790031,0.00010958,2]
[360360286,1746767443738,-400.0,0.00010958,2]
[360360288,1746767443748,-400.0,0.00010958,2]
[360360290,1746767443758,-400.0,0.00010958,2]
[360360292,1746767443768,-411.11279012,0.00010958,2]
[360360294,1746767443778,-400.0,0.00010958,2]
[360360296,1746767443788,-400.0,0.00010958,2]
[360360298,1746767443797,-1391.45,0.00010958,2]
[360360300,1746767443806,-292.21650112,0.00010958,2]
[360360302,1746767443816,-400.0,0.00010958,2]
[360360304,1746767443826,-400.0,0.00010958,2]
[360360306,1746767443836,-400.0,0.00010958,2]
[360360308,1746767443846,-437.30272499,0.00010958,2]
[360360310,1746767443856,-400.0,0.00010958,2]
[360360312,1746767443865,-400.0,0.00010958,2]
[360360314,1746767443874,-408.53570339,0.00010958,2]
[360360316,1746767443884,-403.09518618,0.00010958,2]
[360360318,1746767443893,-411.47911759,0.00010958,2]
[360360320,1746767443904,-400.0,0.00010958,2]
[360360322,1746767443913,-400.0,0.00010958,2]
[360360324,1746767443923,-530.93877941,0.00010958,2]
[360360327,1746767443932,-400.0,0.00010958,2]
[360360329,1746767443942,-405.9190261,0.00010958,2]
[360360331,1746767443951,-400.0,0.00010958,2]
[360360332,1746767443961,-400.0,0.00010958,2]
[360360334,1746767443971,-408.96789677,0.00010958,2]
[360360337,1746767443981,-449.43277395,0.00010958,2]
[360360339,1746767443990,-400.0,0.00010958,2]
[360360340,1746767444000,-497.4635105,0.00010958,2]
[360360342,1746767444010,-400.0,0.00010958,2]
[360360345,1746767444020,-400.0,0.00010958,2]
[360360348,1746767444030,-400.0,0.00010958,2]
[360360351,1746767444042,-400.0,0.00010958,2]
[360360354,1746767444051,-405.0948822,0.00010958,2]
[360360357,1746767444061,-400.0,0.00010958,2]
[360360359,1746767444070,-400.0,0.00010958,2]
[360360361,1746767444079,-406.04126542,0.00010958,2]
[360360363,1746767444088,-400.0,0.00010958,2]
[360360365,1746767444098,-405.39164648,0.00010958,2]
[360360367,1746767444107,-463.48003298,0.00010958,2]
[360360368,1746767444116,-321.63689,0.00010958,2]
[360360371,1746767444126,-321.63689,0.00010958,2]
[360360373,1746767444136,-321.63689,0.00010958,2]
[360360375,1746767444146,-321.63689,0.00010958,2]
[360360377,1746767444156,-321.63689,0.00010958,2]
[360360379,1746767444166,-410.13665058,0.00010958,2]
[360360381,1746767444175,-520.78766242,0.00010958,2]
[360360383,1746767444184,-321.63689,0.00010958,2]
[360360385,1746767444193,-321.63689,0.00010958,2]
[360360387,1746767444202,-321.63689,0.00010958,2]
[360360389,1746767444211,-321.63689,0.00010958,2]
[360360391,1746767444221,-321.63689,0.00010958,2]
[360360393,1746767444229,-400.0,0.00010958,2]
[360360395,1746767444238,-400.0,0.00010958,2]
[360360397,1746767444248,-404.01690114,0.00010958,2]
[360360399,1746767444258,-400.0,0.00010958,2]
[360360401,1746767444268,-458.06180461,0.00010958,2]
[360360403,1746767444278,-400.0,0.00010958,2]
[360360405,1746767444288,-406.88801265,0.00010958,2]
[360360407,1746767444297,-207.84610744,0.00010958,2]
[360360409,1746767444306,-400.0,0.00010958,2]
[360360411,1746767444316,-400.0,0.00010958,2]
[360360413,1746767444328,-406.50306012,0.00010958,2]
[360360415,1746767444338,-534.31243066,0.00010958,2]
[360360417,1746767444348,-407.63969462,0.00010958,2]
[360360419,1746767444357,-413.58704496,0.00010958,2]
[360360421,1746767444367,-400.0,0.00010958,2]
[360360423,1746767444377,-407.80227537,0.00010958,2]
[360360425,1746767444386,-400.0,0.00010958,2]
[360360427,1746767444396,-529.52014396,0.00010958,2]
[360360429,1746767444407,-241.57084209,0.00010958,2]
[360360431,1746767444415,-400.0,0.00010958,2]
[360360433,1746767444424,-400.0,0.00010958,2]
[360360435,1746767444434,-426.35477303,0.00010958,2]
[360360437,1746767444445,-400.0,0.00010958,2]
[360360439,1746767444454,-400.0,0.00010958,2]
[360360441,1746767444463,-400.0,0.00010958,2]
[360360443,1746767444472,-441.05698742,0.00010958,2]
[360360445,1746767444482,-400.0,0.00010958,2]
[360360447,1746767444491,-400.0,0.00010958,2]
[360360449,1746767444500,-741.85,0.00010958,2]
[360360451,1746767444509,-403.62434507,0.00010958,2]
[360360453,1746767444519,-741.85,0.00010958,2]
[360360455,1746767444527,-741.85,0.00010958,2]
[360360457,1746767444537,-741.85,0.00010958,2]
[360360459,1746767444547,-741.85,0.00010958,2]
[360360461,1746767444556,-741.85,0.00010958,2]
[360360463,1746767444565,-741.85,0.00010958,2]
[360360465,1746767444574,-741.85,0.00010958,2]
[360360467,1746767444583,-741.85,0.00010958,2]
[360360469,1746767444592,-400.0,0.00010958,2]
[360360471,1746767444602,-741.85,0.00010958,2]
[360360473,1746767444611,-741.85,0.00010958,2]
[360360475,1746767444620,-741.85,0.00010958,2]
[360360477,1746767444629,-741.85,0.00010958,2]
[360360479,1746767444639,-741.85,0.00010958,2]
[360360481,1746767444649,-741.85,0.00010958,2]
[360360483,1746767444658,-408.93978429,0.00010958,2]
[360360485,1746767444667,-400.0,0.00010958,2]
[360360487,1746767444677,-400.0,0.00010958,2]
[360360489,1746767444686,-406.43557747,0.00010958,2]
[360360491,1746767444695,-400.0,0.00010958,2]
[360360493,1746767444704,-400.0,0.00010958,2]
[360360495,1746767444714,-400.0,0.00010958,2]
[360360497,1746767444723,-400.0,0.00010958,2]
[360360500,1746767444733,-523.49835791,0.00010958,2]
[360360502,1746767444742,-400.0,0.00010958,2]
[360360504,1746767444752,-384.32772609,0.00010958,2]
[360360506,1746767444761,-400.0,0.00010958,2]
[360360508,1746767444770,-400.0,0.00010958,2]
[360360510,1746767444780,-400.0,0.00010958,2]
[360360512,1746767444789,-420.52366721,0.00010958,2]
[360360514,1746767444797,-400.0,0.00010958,2]
[360360516,1746767444806,-403.80180932,0.00010958,2]
[360360518,1746767444816,-400.0,0.00010958,2]
[360360520,1746767444825,-400.0,0.00010958,2]
[360360522,1746767444834,-400.0,0.00010958,2]
[360360524,1746767444843,-400.0,0.00010958,2]
[360360526,1746767444853,-425.98610927,0.00010958,2]
[360360528,1746767444862,-409.25379886,0.00010958,2]
[360360530,1746767444872,-502.04397391,0.00010958,2]
[360360532,1746767444880,-400.0,0.00010958,2]
[360360534,1746767444890,-403.03929319,0.00010958,2]
[360360536,1746767444899,-547.27,0.00010958,2]
[360360538,1746767444908,-400.0,0.00010958,2]
[360360540,1746767444918,-419.02198659,0.00010958,2]
[360360542,1746767444928,-522.67,0.00010958,2]
[360360544,1746767444936,-400.0,0.00010958,2]
[360360546,1746767444947,-400.66748499,0.00010958,2]
[360360548,1746767444956,-400.0,0.00010958,2]
[360360550,1746767444965,-400.0,0.00010958,2]
[360360552,1746767444975,-400.0,0.00010958,2]
[360360554,1746767444984,-404.22171942,0.00010958,2]
[360360556,1746767444997,-404.7362061,0.00010958,2]
[360360558,1746767445010,-400.0,0.00010958,2]
[360360561,1746767445024,-400.0,0.00010958,2]
[360360563,1746767445037,-400.0,0.00010958,2]
[360360566,1746767445050,-683.38,0.00010958,2]
[360360568,1746767445061,-400.0,0.00010958,2]
[360360570,1746767445072,-400.28879028,0.00010958,2]
[360360572,1746767445085,-400.0,0.00010958,2]
[360360575,1746767445098,-400.0,0.00010958,2]
[360360577,1746767445109,-400.0,0.00010958,2]
[360360579,1746767445121,-401.98369442,0.00010958,2]
[360360581,1746767445133,-193.44612829,0.00010958,2]
[360360584,1746767445146,-405.27570939,0.00010958,2]
[360360586,1746767445160,-400.0,0.00010958,2]
[360360588,1746767445172,-400.0,0.00010958,2]
[360360591,1746767445184,-410.19527456,0.00010958,2]
[360360593,1746767445196,-461.66564221,0.00010958,2]
[360360595,1746767445209,-402.83465038,0.00010958,2]
[360360598,1746767445221,-408.96895351,0.00010958,2]
[360360600,1746767445232,-400.0,0.00010958,2]
[360360602,1746767445244,-400.0,0.00010958,2]
[360360605,1746767445256,-400.0,0.00010958,2]
[360360607,1746767445266,-405.59106568,0.00010958,2]
[360360609,1746767445278,-401.62607255,0.00010958,2]
[360360611,1746767445290,-400.0,0.00010958,2]
[360360614,1746767445302,-410.89247829,0.00010958,2]
[360360616,1746767445313,-408.58366044,0.00010958,2]
[360360618,1746767445325,-400.0,0.00010958,2]
[360360620,1746767445340,-507.93319953,0.00010958,2]
[360360622,1746767445350,-402.43173534,0.00010958,2]
[360360625,1746767445360,-406.06738093,0.00010958,2]
[360360627,1746767445372,-210.42432156,0.00010958,2]
[360360629,1746767445382,-400.0,0.00010958,2]
[360360631,1746767445394,-400.0,0.00010958,2]
[360360634,1746767445410,-408.48477762,0.00010958,2]
[360360636,1746767445421,-409.97779748,0.00010958,2]
[360360638,1746767445433,-400.0,0.00010958,2]
[360360640,1746767445445,-1623.79,0.00010958,2]
[360360643,1746767445457,-403.5908748,0.00010958,2]
[360360647,1746767445470,-657.7,0.00010958,2]
[360360651,1746767445481,-409.32354157,0.00010958,2]
[360360653,1746767445494,-400.0,0.00010958,2]
[360360656,1746767445506,-404.11766618,0.00010958,2]
[360360658,1746767445518,-409.66598474,0.00010958,2]
[360360660,1746767445528,-406.66594041,0.00010958,2]
[360360662,1746767445538,-403.86880268,0.00010958,2]
[360360665,1746767445550,-400.0,0.00010958,2]
[360360667,1746767445560,-403.22654741,0.00010958,2]
[360360669,1746767445571,-400.0,0.00010958,2]
[360360670,1746767445583,-409.372597,0.00010958,2]
[360360671,1746767445596,-510.65513658,0.00010958,2]
[360360672,1746767445607,-400.0,0.00010958,2]
[360360673,1746767445619,-411.25283375,0.00010958,2]
[360360674,1746767445631,-400.0,0.00010958,2]
[360360675,1746767445640,-400.0,0.00010958,2]
[360360676,1746767445651,-401.49823115,0.00010958,2]
[360360677,1746767445662,-404.31825111,0.00010958,2]
[360360678,1746767445673,-400.0,0.00010958,2]
[360360679,1746767445684,-412.66099289,0.00010958,2]
[360360680,1746767445695,-400.0,0.00010958,2]
[360360681,1746767445705,-400.0,0.00010958,2]
[360360682,1746767445715,-400.0,0.00010958,2]
[360360683,1746767445725,-400.0,0.00010958,2]
[360360684,1746767445734,-400.0,0.00010958,2]
[360360685,1746767445745,-400.0,0.00010958,2]
[360360686,1746767445755,-400.0,0.00010958,2]
[360360687,1746767445766,-410.57921175,0.00010958,2]
[360360688,1746767445776,-222.49684946,0.00010958,2]
[360360689,1746767445787,-408.96219793,0.00010958,2]
[360360690,1746767445798,-407.31029852,0.00010958,2]
[360360691,1746767445808,-401.04925709,0.00010958,2]
[360360692,1746767445819,-404.79382233,0.00010958,2]
[360360693,1746767445829,-407.04350417,0.00010958,2]
[360360695,1746767445840,-400.71485855,0.00010958,2]
[360360698,1746767445851,-404.02182201,0.00010958,2]
[360360700,1746767445863,-400.0,0.00010958,2]
[360360702,1746767445874,-401.96940521,0.00010958,2]
[360360704,1746767445885,-411.08877305,0.00010958,2]
[360360706,1746767445895,-400.0,0.00010958,2]
[360360709,1746767445907,-419.82909165,0.00010958,2]
[360360711,1746767445917,-287.28378673,0.00010958,2]
[360360713,1746767445928,-215.29104051,0.00010958,2]
[360360715,1746767445938,-400.0,0.00010958,2]
[360360717,1746767445949,-400.0,0.00010958,2]
[360360719,1746767445959,-400.0,0.00010958,2]
[360360721,1746767445970,-293.506346,0.00010959,2]
[360360723,1746767445981,-982.3417755,0.00010959,2]
[360360725,1746767445991,-230.672607,0.00010959,2]
[360360728,1746767446002,-151.0,0.00010959,2]
[360360730,1746767446013,-151.0,0.00010972,2]
[360360732,1746767446023,-151.0,0.00010972,2]
[360360734,1746767446033,-151.0,0.00010972,2]
[360360736,1746767446044,-151.0,0.00010972,2]
[360360738,1746767446055,-293.506346,0.00010972,2]
[360360740,1746767446066,-293.506346,0.00010972,2]
[360360742,1746767446076,-741.85,0.00010972,2]
[360360744,1746767446087,-500.0,0.00010973,2]
[360360747,1746767446097,-500.0,0.00010973,2]
[360360749,1746767446108,-500.0,0.00010973,2]
[360360751,1746767446118,-500.0,0.00010973,2]
[360360753,1746767446128,-500.0,0.00010973,2]
[360360755,1746767446139,-500.0,0.00010973,2]
[360360757,1746767446150,-315.00998429,0.00010973,2]
[360360759,1746767446160,-500.0,0.00010973,2]
[360360761,1746767446171,-153.927477,0.00010973,2]
[360360763,1746767446182,-156.0,0.00011,2]
[360360765,1746767446192,-151.0,0.00011,2]
[360360768,1746767446203,-151.0,0.00011154,2]
[360360770,1746767446213,-539.155874,0.0001123,2]
[360360772,1746767446223,-539.155874,0.0001123,2]
[360360774,1746767446234,-741.85,0.0001123,2]
[360360776,1746767446244,-741.85,0.0001123,2]
[360360778,1746767446256,-741.85,0.0001123,2]
[360360780,1746767446266,-741.85,0.0001123,2]
[360360783,1746767446278,-741.85,0.0001123,2]
[360360785,1746767446288,-741.85,0.0001123,2]
[360360787,1746767446299,-741.85,0.0001123,2]
[360360789,1746767446309,-741.99484471,0.0001123,2]
[360360791,1746767446319,-151.0,0.00011231,2]
[360360793,1746767446332,-155.496652,0.00011231,2]
[360360795,1746767446343,-151.0,0.00011231,2]
[360360797,1746767446354,-151.0,0.00011231,2]
[360360799,1746767446365,-151.0,0.00011231,2]
[360360801,1746767446375,-463.11270014,0.00011231,2]
[360360803,1746767446386,-400.0,0.00011232,2]
[360360806,1746767446397,-151.0,0.00011232,2]
[360360808,1746767446412,-151.0,0.00011232,2]
[360360810,1746767446423,-151.0,0.00011232,2]
[360360812,1746767446434,-293.506349,0.00011232,2]
[360360814,1746767446444,-400.0,0.00011232,2]
[360360816,1746767446455,-400.00232936,0.00011232,2]
[360360819,1746767446465,-400.0,0.00011232,2]
[360360821,1746767446476,-400.0,0.00011232,2]
[360360823,1746767446487,-230.27651872,0.00011232,2]
[360360825,1746767446497,-400.0,0.00011232,2]
[360360827,1746767446508,-400.0,0.00011232,2]
[360360829,1746767446518,-438.02276787,0.00011232,2]
[360360831,1746767446529,-407.17648846,0.00011232,2]
[360360834,1746767446539,-428.69300559,0.00011232,2]
[360360836,1746767446550,-358.0,0.00011232,2]
[360360838,1746767446561,-400.0,0.00011232,2]
[360360840,1746767446570,-400.0,0.00011232,2]
[360360842,1746767446579,-504.54,0.00011232,2]
[360360844,1746767446589,-400.0,0.00011232,2]
[360360846,1746767446598,-273.14906874,0.00011232,2]
[360360848,1746767446608,-441.28853989,0.00011232,2]
[360360850,1746767446617,-400.0,0.00011232,2]
[360360852,1746767446627,-236.5623063,0.00011232,2]
[360360854,1746767446636,-400.0,0.00011232,2]
[360360856,1746767446646,-539.155874,0.00011232,2]
[360360858,1746767446657,-539.155874,0.00011232,2]
[360360860,1746767446667,-539.155874,0.00011232,2]
[360360862,1746767446676,-539.155874,0.00011232,2]
[360360863,1746767446685,-400.0,0.00011232,2]
[360360866,1746767446695,-400.0,0.00011232,2]
[360360888,1746767446898,-400.0,0.00011232,2]
[360360890,1746767446912,-507.92068027,0.00011232,2]
[360360892,1746767446922,-409.42571801,0.00011232,2]
[360360894,1746767446931,-400.0,0.00011232,2]
[360360896,1746767446940,-1391.45,0.00011232,2]
[360360898,1746767446950,-400.0,0.00011232,2]
[360360900,1746767446959,-408.54687503,0.00011232,2]
[360360902,1746767446968,-400.0,0.00011232,2]
[360360904,1746767446978,-400.0,0.00011232,2]
[360360906,1746767446987,-400.0,0.00011232,2]
[360360907,1746767446996,-400.0,0.00011232,2]
[360360909,1746767447007,-413.57943775,0.00011232,2]
[360360912,1746767447017,-400.0,0.00011232,2]
[360360913,1746767447026,-393.79780717,0.00011232,2]
[360360916,1746767447036,-400.0,0.00011232,2]
[360360918,1746767447045,-184.834299,0.00011232,2]
[360360920,1746767447055,-421.25039469,0.00011232,2]
[360360922,1746767447064,-400.0,0.00011232,2]
[360360923,1746767447074,-400.0,0.00011232,2]
[360360926,1746767447084,-400.0,0.00011232,2]
[360360927,1746767447095,-400.0,0.00011232,2]
[360360929,1746767447104,-400.0,0.00011232,2]
[360360932,1746767447114,-321.63689,0.00011232,2]
[360360934,1746767447124,-321.63689,0.00011232,2]
[360360936,1746767447134,-321.63689,0.00011232,2]
[360360938,1746767447144,-321.63689,0.00011232,2]
[360360940,1746767447154,-469.05768323,0.00011232,2]
[360360942,1746767447163,-321.63689,0.00011232,2]
[360360943,1746767447172,-321.63689,0.00011232,2]
[360360945,1746767447182,-400.0,0.00011232,2]
[360360947,1746767447192,-400.0,0.00011232,2]
[360360949,1746767447201,-400.0,0.00011232,2]
[360360951,1746767447210,-400.0,0.00011232,2]
[360360953,1746767447220,-400.0,0.00011232,2]
[360360955,1746767447229,-400.0,0.00011232,2]
[360360957,1746767447238,-409.2301329,0.00011232,2]
[360360959,1746767447248,-400.0,0.00011232,2]
[360360961,1746767447257,-168.87186639,0.00011232,2]
[360360963,1746767447267,-198.04871283,0.00011232,2]
[360360965,1746767447277,-405.5392675,0.00011232,2]
[360360967,1746767447286,-400.0,0.00011232,2]
[360360970,1746767447296,-400.0,0.00011232,2]
[360360971,1746767447306,-400.0,0.00011232,2]
[360360973,1746767447315,-402.61947574,0.00011232,2]
[360360975,1746767447324,-400.0,0.00011232,2]
[360360977,1746767447337,-400.0,0.00011232,2]
[360360979,1746767447346,-225.94669133,0.00011232,2]
[360360981,1746767447356,-407.43365885,0.00011232,2]
[360360983,1746767447365,-431.50735914,0.00011232,2]
[360360985,1746767447377,-400.0,0.00011232,2]
[360360987,1746767447387,-400.0,0.00011232,2]
[360360989,1746767447397,-400.0,0.00011232,2]
[360360991,1746767447409,-400.0,0.00011232,2]
[360360993,1746767447418,-400.0,0.00011232,2]
[360360995,1746767447429,-412.21972785,0.00011232,2]
[360360997,1746767447439,-400.0,0.00011232,2]
[360360999,1746767447451,-400.0,0.00011232,2]
[360361001,1746767447461,-409.5930936,0.00011232,2]
[360361003,1746767447471,-400.0,0.00011232,2]
[360361005,1746767447480,-547.27,0.00011232,2]
[360361007,1746767447490,-400.0,0.00011232,2]
[360361009,1746767447499,-522.67,0.00011232,2]
[360361011,1746767447509,-410.39151555,0.00011232,2]
[360361013,1746767447518,-335.1198435,0.00011232,2]
[360361015,1746767447527,-316.62846889,0.00011232,2]
[360361017,1746767447537,-400.0,0.00011232,2]
[360361019,1746767447546,-400.0,0.00011232,2]
[360361021,1746767447556,-66.01971427,0.00011232,2]
[360361044,1746767447769,-400.0,0.00010958,2]
[360361046,1746767447779,-36.73,0.00011081,2]
[360362514,1746767497411,2897.0,0.0003013,60]
[360362595,1746768636589,-404.0,0.00010399,2]
[360362596,1746768636599,-500.0,0.00010857,2]
[360362597,1746768636609,-500.0,0.00010857,2]
[360362598,1746768636619,-257.67207211,0.00010857,2]
[360362599,1746768636628,-173.11379998,0.00010858,2]
[360362600,1746768636637,-53515.21412808,0.00010858,2]
[360362604,1746768638195,-379.50160881,0.00010858,2]
[360362605,1746768638255,-2751.92501675,0.00010858,2]
[360362890,1746768643304,-931.0359376,0.00010858,2]
[360363207,1746768646395,-119998.72731319,0.00010858,2]
[360363210,1746768646407,-179.256198,0.00010958,2]
[360363212,1746768646419,-179.256198,0.00010958,2]
[360363214,1746768646431,-179.256198,0.00010958,2]
[360363216,1746768646441,-179.256198,0.00010958,2]
[360363218,1746768646452,-179.256198,0.00010958,2]
[360363221,1746768646463,-179.256198,0.00010958,2]
[360363223,1746768646474,-179.256198,0.00010958,2]
[360363225,1746768646484,-179.256198,0.00010958,2]
[360363227,1746768646495,-400.0,0.00010958,2]
[360363229,1746768646506,-400.0,0.00010958,2]
[360363231,1746768646517,-358.0,0.00010958,2]
[360363233,1746768646527,-400.0,0.00010958,2]
[360363235,1746768646538,-205.87967125,0.00010958,2]
[360363237,1746768646549,-400.0,0.00010958,2]
[360363240,1746768646559,-400.0,0.00010958,2]
[360363242,1746768646571,-405.81505693,0.00010958,2]
[360363245,1746768646583,-400.0,0.00010958,2]
[360363248,1746768646593,-400.0,0.00010958,2]
[360363251,1746768646604,-1275.5,0.00010958,2]
[360363253,1746768646614,-400.0,0.00010958,2]
[360363255,1746768646625,-206.45106252,0.00010958,2]
[360363257,1746768646635,-400.0,0.00010958,2]
[360363260,1746768646646,-462.49,0.00010958,2]
[360363262,1746768646656,-436.94642215,0.00010958,2]
[360363264,1746768646667,-392.99604823,0.00010958,2]
[360363266,1746768646680,-168.36044557,0.00010958,2]
[360363268,1746768646691,-400.0,0.00010958,2]
[360363270,1746768646701,-389.6712664,0.00010958,2]
[360363272,1746768646713,-253.2798695,0.00010958,2]
[360363274,1746768646723,-400.0,0.00010958,2]
[360363276,1746768646734,-400.0,0.00010958,2]
[360363278,1746768646744,-400.0,0.00010958,2]
[360363281,1746768646756,-400.0,0.00010958,2]
[360363283,1746768646767,-404.86527382,0.00010958,2]
[360363285,1746768646778,-211.95834688,0.00010958,2]
[360363287,1746768646788,-400.0,0.00010958,2]
[360363289,1746768646799,-400.0,0.00010958,2]
[360363291,1746768646810,-400.0,0.00010958,2]
[360363294,1746768646821,-518.87525087,0.00010958,2]
[360363296,1746768646833,-400.0,0.00010958,2]
[360363298,1746768646845,-400.0,0.00010958,2]
[360363300,1746768646856,-400.0,0.00010958,2]
[360363302,1746768646867,-261.58166856,0.00010958,2]
[360363304,1746768646879,-400.0,0.00010958,2]
[360363307,1746768646889,-397.53577362,0.00010958,2]
[360363309,1746768646901,-400.0,0.00010958,2]
[360363311,1746768646911,-501.66,0.00010958,2]
[360363313,1746768646922,-400.0,0.00010958,2]
[360363315,1746768646933,-427.63291285,0.00010958,2]
[360363317,1746768646943,-400.0,0.00010958,2]
[360363319,1746768646954,-400.0,0.00010958,2]
[360363321,1746768646964,-400.0,0.00010958,2]
[360363323,1746768646975,-379.69309073,0.00010958,2]
[360363326,1746768646985,-400.0,0.00010958,2]
[360363328,1746768646996,-199.34757897,0.00010958,2]
[360363330,1746768647006,-400.0,0.00010958,2]
[360363332,1746768647017,-507.86249453,0.00010958,2]
[360363334,1746768647027,-400.0,0.00010958,2]
[360363336,1746768647037,-400.0,0.00010958,2]
[360363338,1746768647047,-400.0,0.00010958,2]
[360363340,1746768647058,-243.2990298,0.00010958,2]
[360363342,1746768647069,-400.0,0.00010958,2]
[360363345,1746768647079,-400.0,0.00010958,2]
[360363347,1746768647089,-400.0,0.00010958,2]
[360363349,1746768647100,-654.91,0.00010958,2]
[360363351,1746768647111,-400.0,0.00010958,2]
[360363353,1746768647121,-400.0,0.00010958,2]
[360363355,1746768647132,-405.42446819,0.00010958,2]
[360363357,1746768647143,-467.17089183,0.00010958,2]
[360363360,1746768647153,-225.92024488,0.00010958,2]
[360363362,1746768647164,-400.0,0.00010958,2]
[360363364,1746768647175,-1556.13,0.00010958,2]
[360363366,1746768647187,-507.19,0.00010958,2]
[360363368,1746768647197,-391.57509805,0.00010958,2]
[360363370,1746768647208,-413.98138168,0.00010958,2]
[360363373,1746768647218,-407.34403673,0.00010958,2]
[360363375,1746768647229,-400.0,0.00010958,2]
[360363377,1746768647240,-306.94668184,0.00010958,2]
[360363379,1746768647251,-414.65044825,0.00010958,2]
[360363381,1746768647261,-400.0,0.00010958,2]
[360363383,1746768647271,-406.20704799,0.00010958,2]
[360363385,1746768647280,-400.0,0.00010958,2]
[360363387,1746768647291,-331.31009293,0.00010958,2]
[360363389,1746768647300,-411.38896284,0.00010958,2]
[360363391,1746768647310,-662.62,0.00010958,2]
[360363394,1746768647319,-400.0,0.00010958,2]
[360363396,1746768647329,-469.40320232,0.00010958,2]
[360363397,1746768647338,-400.0,0.00010958,2]
[360363423,1746768647559,-397.51870444,0.00010958,2]
[360363425,1746768647576,-406.68775149,0.00010958,2]
[360363427,1746768647585,-400.0,0.00010958,2]
[360363429,1746768647595,-400.0,0.00010958,2]
[360363431,1746768647604,-400.0,0.00010958,2]
[360363434,1746768647614,-221.96279697,0.00010958,2]
[360363436,1746768647623,-400.0,0.00010958,2]